[Event "EYCC Girls-U18 2019"]
[Site "Bratislava"]
[Date "2019.08.08"]
[Round "7.4"]
[White "Cramling Bellon, Anna"]
[Black "Kucharska, Honorata"]
[Result "0-1"]
[ECO "E71"]
[WhiteElo "2030"]
[BlackElo "2054"]
[Annotator "NA"]
[PlyCount "94"]
[EventDate "2019.08.02"]
[EventType "swiss"]
[EventCountry "SVK"]
[SourceTitle "playchess.com"]
[Source "ChessBase"]
[SourceQuality "1"]
[TimeControl "40/5400+30:1800+30"]

1. d4 {[%emt 0:00:00]} Nf6 {[%emt 0:00:00]} 2. c4 {[%emt 0:00:00]} g6 {[%emt 0:00:00]} 3. Nc3 {[%emt 0:00:00]} Bg7 {[%emt 0:00:00]} 4. e4 {[%emt 0:00:00]} d6 {[%emt 0:00:00]} 5. h3 {[%emt 0:00:36]} O-O {[%emt 0:00:17]} 6. Nf3 {[%emt 0:00:12]} e5 {[%emt 0:00:15]} 7. d5 {[%emt 0:00:11]} a5 {[%emt 0:00:23]} 8. Bg5 {[%emt 0:00:33]} Na6 {[%emt 0:00:27]} 9. Be2 {[%emt 0:00:44]} Qe8 {[%emt 0:00:47]} 10. Nd2 {[%emt 0:08:21]} Nd7 {[%emt 0:03:31]} 11. g4 {[%emt 0:15:06]} Ndc5 {[%emt 0:02:22]} 12. Nb3 {[%emt 0:10:38]} Nxb3 {[%emt 0:06:52]} 13. Qxb3 Nc5 {[%emt 0:03:33]} 14. Qc2 {[%emt 0:09:00]} f5 {[%emt 0:03:51]} 15. f3 {[%emt 0:06:56]} Bd7 {[%emt 0:05:25]} 16. Be3 {[%emt 0:08:29]} b6 {[%emt 0:04:13]} 17. gxf5 {[%emt 0:02:24]} gxf5 {[%emt 0:00:16]} 18. O-O-O {[%emt 0:00:26]} f4 {[%emt 0:05:39]} 19. Bxc5 {[%emt 0:01:19]} bxc5 {[%emt 0:01:06]} 20. Rdg1 {[%emt 0:07:28]} Kh8 {[%emt 0:01:57]} 21. h4 {[%emt 0:01:50]} Bh6 {[%emt 0:03:13]} 22. Bf1 {[%emt 0:10:00]} Qh5 {[%emt 0:04:13]} 23. Qf2 {[%emt 0:00:17]} Rg8 {[%emt 0:03:22]} 24. Kb1 {[%emt 0:00:23]} Raf8 {[%emt 0:10:28]} 25. Ne2 {[%emt 0:06:42]} Rg7 {[%emt 0:06:35]} 26. Rxg7 {[%emt 0:01:36]} Bxg7 {[%emt 0:00:00]} 27. Bh3 {[%emt 0:08:20]} Bxh3 {[%emt 0:00:24]} 28. Rxh3 {[%emt 0:00:01]} Bf6 {[%emt 0:00:21]} 29. Qe1 {[%emt 0:00:57]} Ra8 {[%emt 0:05:32]} 30. Nc3 {[%emt 0:01:00]} Qg6 {[%emt 0:01:42]} 31. Qf1 {[%emt 0:01:26]} Rg8 {[%emt 0:01:03]} 32. Nb5 {[%emt 0:00:01]} Qg2 {[%emt 0:02:28]} 33. Rh1 {[%emt 0:00:51]} Qxf1+ {[%emt 0:02:48]} 34. Rxf1 {[%emt 0:00:02]} Bxh4 {[%emt 0:00:20]} 35. Nxc7 {[%emt 0:00:09]} Bg3 {[%emt 0:00:51]} 36. Nb5 {[%emt 0:00:59]} Rd8 {[%emt 0:01:11]} 37. Rh1 {[%emt 0:00:08]} Kg7 {[%emt 0:01:15]} 38. Nc3 {[%emt 0:00:00]} Kg6 {[%emt 0:00:00]} 39. Ne2 {[%emt 0:00:00]} h5 {[%emt 0:00:00]} 40. Nxg3 {[%emt 0:00:00]} fxg3 {[%emt 0:00:00]} 41. Rh3 {[%emt 0:21:08]} h4 {[%emt 0:09:49]} 42. Rxh4 {[%emt 0:00:14]} Rg8 {[%emt 0:00:04]} 43. Rh1 {[%emt 0:00:40]} Kg5 {[%emt 0:00:08]} 44. Kc2 {[%emt 0:02:11]} g2 {[%emt 0:00:45]} 45. Rg1 {[%emt 0:00:37]} Kf4 {[%emt 0:00:04]} 46. Kd2 {[%emt 0:03:59]} Kxf3 {[%emt 0:00:07]} 47. Ke1 {[%emt 0:00:13]} Rh8 {[%emt 0:00:11]} 0-1

[Event "EYCC Girls-U18 2019"]
[Site "Bratislava"]
[Date "2019.08.08"]
[Round "7.5"]
[White "Antova, Gabriela"]
[Black "Kochukova, Anna"]
[Result "1-0"]
[ECO "D37"]
[WhiteElo "2257"]
[BlackElo "2148"]
[Annotator "NA"]
[PlyCount "73"]
[EventDate "2019.08.02"]
[EventType "swiss"]
[EventCountry "SVK"]
[SourceTitle "playchess.com"]
[Source "ChessBase"]
[SourceQuality "1"]
[TimeControl "40/5400+30:1800+30"]

1. d4 {[%emt 0:00:00]} Nf6 {[%emt 0:00:00]} 2. c4 {[%emt 0:00:00]} e6 {[%emt 0:00:00]} 3. Nf3 {[%emt 0:00:00]} d5 {[%emt 0:00:14]} 4. Nc3 {[%emt 0:00:15]} dxc4 {[%emt 0:00:15]} 5. e4 {[%emt 0:00:27]} b5 {[%emt 0:00:23]} 6. Bg5 {[%emt 0:16:06]} a6 {[%emt 0:09:07]} 7. e5 {[%emt 0:06:03]} h6 {[%emt 0:00:09]} 8. Bh4 {[%emt 0:01:09]} g5 {[%emt 0:00:07]} 9. Nxg5 {[%emt 0:02:07]} hxg5 {[%emt 0:00:01]} 10. Bxg5 {[%emt 0:00:01]} Nbd7 {[%emt 0:00:08]} 11. exf6 {[%emt 0:01:21]} Bb7 {[%emt 0:00:34]} 12. a4 {[%emt 0:22:52]} Bb4 {[%emt 0:16:47]} 13. h4 {[%emt 0:01:48]} Nb6 {[%emt 0:03:59]} 14. Rh3 {[%emt 0:11:55]} Qd5 {[%emt 0:19:23]} 15. axb5 {[%emt 0:10:30]} axb5 {[%emt 0:01:26]} 16. Rxa8+ {[%emt 0:00:05]} Bxa8 {[%emt 0:00:18]} 17. Re3 {[%emt 0:01:02]} Qd6 {[%emt 0:17:15]} 18. Rg3 {[%emt 0:05:30]} Bc6 {[%emt 0:09:54]} 19. Be2 {[%emt 0:00:46]} Na4 {[%emt 0:01:22]} 20. Qd2 {[%emt 0:00:24]} Ba5 {[%emt 0:03:47]} 21. Kf1 {[%emt 0:02:49]} Qb4 {[%emt 0:06:18]} 22. d5 {[%emt 0:01:56]} exd5 {[%emt 0:02:38]} 23. Qe3+ {[%emt 0:01:03]} Kd8 {[%emt 0:00:35]} 24. Qa7 {[%emt 0:05:03]} Nb6 {[%emt 0:03:19]} 25. Qb8+ {[%emt 0:00:49]} Nc8 {[%emt 0:01:06]} 26. Bg4 {[%emt 0:02:29]} Bd7 {[%emt 0:00:01]} 27. Qa8 {[%emt 0:04:46]} c6 {[%emt 0:02:31]} 28. Qb7 {[%emt 0:01:23]} Bxg4 {[%emt 0:01:05]} 29. Qxf7 {[%emt 0:00:49]} Bd7 {[%emt 0:00:59]} 30. Qg7 {[%emt 0:00:26]} Rf8 {[%emt 0:00:29]} 31. f7+ {[%emt 0:00:04]} Kc7 {[%emt 0:00:10]} 32. Bh6 {[%emt 0:00:28]} Rxf7 {[%emt 0:01:03]} 33. Qxf7 {[%emt 0:00:02]} d4 {[%emt 0:00:32]} 34. Bf4+ {[%emt 0:00:20]} Nd6 {[%emt 0:00:29]} 35. Rg7 {[%emt 0:00:10]} Qxb2 {[%emt 0:00:35]} 36. Qxd7+ {[%emt 0:00:05]} Kb6 {[%emt 0:00:09]} 37. Qa7# {[%emt 0:00:02]} 1-0

[Event "EYCC Girls-U18 2019"]
[Site "Bratislava"]
[Date "2019.08.08"]
[Round "7.6"]
[White "Afonasieva, Anna"]
[Black "Sibajeva, Marija"]
[Result "1-0"]
[ECO "A49"]
[WhiteElo "2370"]
[BlackElo "2031"]
[Annotator "NA"]
[PlyCount "69"]
[EventDate "2019.08.02"]
[EventType "swiss"]
[EventCountry "SVK"]
[SourceTitle "playchess.com"]
[Source "ChessBase"]
[SourceQuality "1"]
[TimeControl "40/5400+30:1800+30"]

1. d4 {[%emt 0:00:00]} Nf6 {[%emt 0:00:00]} 2. Nf3 {[%emt 0:00:00]} g6 {[%emt 0:00:00]} 3. g3 {[%emt 0:00:00]} Bg7 {[%emt 0:00:15]} 4. Bg2 {[%emt 0:00:00]} d5 {[%emt 0:00:10]} 5. O-O {[%emt 0:00:00]} O-O {[%emt 0:00:08]} 6. c3 {[%emt 0:00:00]} Nbd7 {[%emt 0:05:19]} 7. a4 {[%emt 0:01:42]} Ne4 {[%emt 0:07:18]} 8. Bf4 {[%emt 0:04:43]} c6 {[%emt 0:07:02]} 9. Qc1 {[%emt 0:03:35]} Re8 {[%emt 0:02:59]} 10. c4 {[%emt 0:03:01]} dxc4 {[%emt 0:07:53]} 11. Qxc4 {[%emt 0:02:04]} Nd6 {[%emt 0:07:51]} 12. Qc2 {[%emt 0:05:53]} e5 {[%emt 0:07:17]} 13. dxe5 {[%emt 0:03:33]} Nxe5 {[%emt 0:00:09]} 14. Nxe5 {[%emt 0:10:14]} Bxe5 {[%emt 0:00:18]} 15. Bxe5 {[%emt 0:00:13]} Rxe5 {[%emt 0:00:07]} 16. Rd1 {[%emt 0:00:31]} Qe7 {[%emt 0:02:52]} 17. Nc3 {[%emt 0:03:04]} Bf5 {[%emt 0:03:40]} 18. Qb3 {[%emt 0:03:10]} Ne4 {[%emt 0:11:28]} 19. Nxe4 {[%emt 0:02:38]} Bxe4 {[%emt 0:00:12]} 20. Bxe4 {[%emt 0:00:15]} Rxe4 {[%emt 0:00:06]} 21. e3 {[%emt 0:00:05]} Rb4 {[%emt 0:01:51]} 22. Qc3 {[%emt 0:00:44]} a5 {[%emt 0:04:41]} 23. b3 {[%emt 0:05:02]} Rd8 {[%emt 0:07:42]} 24. Qc2 {[%emt 0:01:06]} Rxd1+ {[%emt 0:00:45]} 25. Rxd1 {[%emt 0:00:05]} h5 {[%emt 0:03:59]} 26. h4 {[%emt 0:04:29]} Kg7 {[%emt 0:01:48]} 27. Rd3 {[%emt 0:02:16]} Qe6 {[%emt 0:04:57]} 28. Qd1 {[%emt 0:18:44]} Qf6 {[%emt 0:05:27]} 29. Rd6 {[%emt 0:03:06]} Qc3 {[%emt 0:00:38]} 30. Rd8 {[%emt 0:04:14]} Rxb3 {[%emt 0:03:40]} 31. Qd6 {[%emt 0:00:21]} Kh7 {[%emt 0:00:18]} 32. Qe7 {[%emt 0:03:50]} Rb1+ {[%emt 0:02:06]} 33. Kh2 {[%emt 0:00:20]} Qg7 {[%emt 0:02:46]} 34. Rf8 {[%emt 0:00:08]} Rb2 {[%emt 0:00:43]} 35. Kg2 {[%emt 0:00:11]} 1-0

[Event "EYCC Girls-U18 2019"]
[Site "Bratislava"]
[Date "2019.08.08"]
[Round "7.7"]
[White "Schneider, Jana"]
[Black "Palma, Maria"]
[Result "1/2-1/2"]
[ECO "B66"]
[WhiteElo "2216"]
[BlackElo "2137"]
[Annotator "NA"]
[PlyCount "75"]
[EventDate "2019.08.02"]
[EventType "swiss"]
[EventCountry "SVK"]
[SourceTitle "playchess.com"]
[Source "ChessBase"]
[SourceQuality "1"]
[TimeControl "40/5400+30:1800+30"]

1. e4 {[%emt 0:00:00]} c5 {[%emt 0:00:00]} 2. Nf3 {[%emt 0:00:00]} Nc6 {[%emt 0:00:00]} 3. d4 {[%emt 0:00:00]} cxd4 {[%emt 0:00:00]} 4. Nxd4 {[%emt 0:00:00]} Nf6 {[%emt 0:00:00]} 5. Nc3 {[%emt 0:00:05]} d6 {[%emt 0:00:23]} 6. Bg5 {[%emt 0:00:17]} e6 {[%emt 0:00:54]} 7. Qd2 {[%emt 0:00:12]} a6 {[%emt 0:00:59]} 8. O-O-O {[%emt 0:00:18]} Nxd4 {[%emt 0:01:50]} 9. Qxd4 {[%emt 0:00:09]} Be7 {[%emt 0:00:15]} 10. f4 {[%emt 0:01:36]} b5 {[%emt 0:02:49]} 11. Bxf6 {[%emt 0:13:56]} gxf6 {[%emt 0:00:27]} 12. f5 {[%emt 0:01:10]} Qc7 {[%emt 0:02:49]} 13. fxe6 {[%emt 0:16:31]} fxe6 {[%emt 0:03:33]} 14. e5 {[%emt 0:00:48]} fxe5 {[%emt 0:17:09]} 15. Qg4 {[%emt 0:01:38]} Rf8 {[%emt 0:20:23]} 16. Qh5+ {[%emt 0:02:21]} Kd8 {[%emt 0:04:03]} 17. Bd3 {[%emt 0:08:37]} Bd7 {[%emt 0:03:52]} 18. Bxh7 {[%emt 0:06:03]} d5 {[%emt 0:03:01]} 19. Rhf1 {[%emt 0:02:51]} Rxf1 {[%emt 0:03:35]} 20. Rxf1 {[%emt 0:00:08]} Be8 {[%emt 0:03:10]} 21. Qg4 {[%emt 0:03:02]} Qc4 {[%emt 0:12:19]} 22. Qd1 {[%emt 0:09:28]} b4 {[%emt 0:03:04]} 23. Bd3 {[%emt 0:02:13]} Qh4 {[%emt 0:03:41]} 24. Ne4 {[%emt 0:02:42]} Qxh2 {[%emt 0:02:00]} 25. g4 {[%emt 0:01:05]} Ra7 {[%emt 0:01:04]} 26. Nf2 {[%emt 0:03:23]} Bh4 {[%emt 0:01:54]} 27. Nh1 {[%emt 0:07:57]} Bg5+ {[%emt 0:02:19]} 28. Kb1 {[%emt 0:00:07]} Bf4 {[%emt 0:00:29]} 29. g5 {[%emt 0:02:29]} Bh5 {[%emt 0:01:26]} 30. Qe1 {[%emt 0:01:19]} a5 {[%emt 0:00:37]} 31. g6 {[%emt 0:01:10]} Rg7 {[%emt 0:01:11]} 32. Rf2 {[%emt 0:06:10]} Qh4 {[%emt 0:01:14]} 33. a3 {[%emt 0:00:30]} bxa3 {[%emt 0:01:31]} 34. Qxa5+ {[%emt 0:00:22]} Rc7 {[%emt 0:02:35]} 35. Qa8+ {[%emt 0:00:27]} Rc8 {[%emt 0:00:39]} 36. Qa5+ {[%emt 0:00:05]} Rc7 {[%emt 0:00:07]} 37. Qa8+ {[%emt 0:00:04]} Rc8 {[%emt 0:01:35]} 38. Qa5+ {[%emt 0:00:05]} 1/2-1/2

[Event "EYCC Girls-U18 2019"]
[Site "Bratislava"]
[Date "2019.08.08"]
[Round "7.8"]
[White "Grigorieva, Yulia"]
[Black "Nestorovic, Katarina"]
[Result "1-0"]
[ECO "E14"]
[WhiteElo "2096"]
[BlackElo "2179"]
[Annotator "NA"]
[PlyCount "65"]
[EventDate "2019.08.02"]
[EventType "swiss"]
[EventCountry "SVK"]
[SourceTitle "playchess.com"]
[Source "ChessBase"]
[SourceQuality "1"]
[TimeControl "40/5400+30:1800+30"]

1. d4 {[%emt 0:00:00]} Nf6 {[%emt 0:00:00]} 2. c4 {[%emt 0:00:00]} e6 {[%emt 0:00:00]} 3. Nf3 {[%emt 0:00:00]} b6 {[%emt 0:00:08]} 4. e3 {[%emt 0:00:17]} Bb4+ {[%emt 0:01:50]} 5. Nbd2 {[%emt 0:02:05]} Bb7 {[%emt 0:00:48]} 6. Bd3 {[%emt 0:02:34]} O-O {[%emt 0:02:03]} 7. O-O {[%emt 0:04:10]} d5 {[%emt 0:02:19]} 8. cxd5 {[%emt 0:03:45]} exd5 {[%emt 0:01:48]} 9. a3 {[%emt 0:02:01]} Bxd2 {[%emt 0:02:43]} 10. Bxd2 {[%emt 0:01:07]} Nbd7 {[%emt 0:01:37]} 11. b4 {[%emt 0:06:29]} Ne4 {[%emt 0:06:26]} 12. b5 {[%emt 0:07:30]} Nxd2 {[%emt 0:02:46]} 13. Qxd2 {[%emt 0:01:30]} a6 {[%emt 0:05:31]} 14. a4 {[%emt 0:02:01]} g6 {[%emt 0:00:46]} 15. Qc2 {[%emt 0:02:54]} Qb8 {[%emt 0:04:38]} 16. h4 {[%emt 0:05:37]} Ra7 {[%emt 0:15:45]} 17. h5 {[%emt 0:03:38]} Kg7 {[%emt 0:00:42]} 18. Ng5 {[%emt 0:11:02]} c5 {[%emt 0:10:15]} 19. bxc6 {[%emt 0:10:46]} Rc8 {[%emt 0:00:35]} 20. f4 {[%emt 0:08:37]} Rxc6 {[%emt 0:06:34]} 21. Qf2 {[%emt 0:00:14]} Nf6 {[%emt 0:06:27]} 22. hxg6 {[%emt 0:03:38]} hxg6 {[%emt 0:00:45]} 23. f5 {[%emt 0:04:36]} Qd6 {[%emt 0:06:40]} 24. fxg6 {[%emt 0:04:53]} fxg6 {[%emt 0:00:22]} 25. Qh4 {[%emt 0:00:24]} Nh5 {[%emt 0:04:49]} 26. Rf7+ {[%emt 0:01:40]} Kg8 {[%emt 0:00:11]} 27. Raf1 {[%emt 0:02:04]} Rc8 {[%emt 0:01:54]} 28. Qf2 {[%emt 0:03:04]} b5 {[%emt 0:05:35]} 29. Bxg6 {[%emt 0:01:10]} Qxg6 {[%emt 0:00:13]} 30. Rf8+ {[%emt 0:00:21]} Kg7 {[%emt 0:00:16]} 31. Rxc8 {[%emt 0:00:28]} Kh6 {[%emt 0:04:20]} 32. Nf7+ {[%emt 0:00:51]} Kg7 {[%emt 0:01:02]} 33. Rc7 {[%emt 0:01:00]} 1-0

[Event "EYCC Girls-U18 2019"]
[Site "Bratislava"]
[Date "2019.08.08"]
[Round "7.9"]
[White "Redondo Benavente, Ana"]
[Black "Nilssen, Ellen Fredericia"]
[Result "1/2-1/2"]
[ECO "C15"]
[WhiteElo "2176"]
[BlackElo "2155"]
[Annotator "NA"]
[PlyCount "177"]
[EventDate "2019.08.02"]
[EventType "swiss"]
[EventCountry "SVK"]
[SourceTitle "playchess.com"]
[Source "ChessBase"]
[SourceQuality "1"]
[TimeControl "40/5400+30:1800+30"]

1. e4 {[%emt 0:00:00]} e6 {[%emt 0:00:00]} 2. d4 {[%emt 0:00:00]} d5 {[%emt 0:00:00]} 3. Nc3 {[%emt 0:00:06]} Bb4 {[%emt 0:00:35]} 4. exd5 {[%emt 0:00:24]} exd5 {[%emt 0:01:39]} 5. Bd3 {[%emt 0:00:15]} c5 {[%emt 0:05:18]} 6. dxc5 {[%emt 0:07:33]} Nc6 {[%emt 0:04:01]} 7. Nge2 {[%emt 0:10:00]} Nge7 {[%emt 0:09:19]} 8. Be3 {[%emt 0:03:24]} Bxc3+ {[%emt 0:17:40]} 9. bxc3 {[%emt 0:00:16]} Nf5 {[%emt 0:02:52]} 10. Qd2 {[%emt 0:07:20]} Nxe3 {[%emt 0:05:21]} 11. Qxe3+ {[%emt 0:00:06]} Ne7 {[%emt 0:01:57]} 12. O-O {[%emt 0:01:21]} O-O {[%emt 0:00:06]} 13. Nd4 {[%emt 0:03:05]} Re8 {[%emt 0:05:04]} 14. Rfe1 {[%emt 0:00:52]} Bd7 {[%emt 0:00:06]} 15. Qg3 {[%emt 0:03:39]} a6 {[%emt 0:09:32]} 16. Rab1 {[%emt 0:04:51]} Rc8 {[%emt 0:04:44]} 17. Qd6 {[%emt 0:20:42]} Rc7 {[%emt 0:00:05]} 18. Re3 {[%emt 0:03:02]} Bc8 {[%emt 0:08:06]} 19. Rbe1 {[%emt 0:02:15]} Rd7 {[%emt 0:00:07]} 20. Qb6 {[%emt 0:04:48]} Rc7 {[%emt 0:00:26]} 21. Bf5 {[%emt 0:03:16]} Rf8 {[%emt 0:00:14]} 22. Bd3 {[%emt 0:02:00]} h6 {[%emt 0:03:46]} 23. Re5 {[%emt 0:04:37]} Kh8 {[%emt 0:01:59]} 24. R1e3 {[%emt 0:00:58]} Ng8 {[%emt 0:01:20]} 25. Qd6 {[%emt 0:02:18]} Nf6 {[%emt 0:03:40]} 26. Re7 {[%emt 0:03:13]} Qxd6 {[%emt 0:01:34]} 27. cxd6 {[%emt 0:00:01]} Rxc3 {[%emt 0:00:07]} 28. Rc7 {[%emt 0:05:14]} Rxc7 {[%emt 0:01:08]} 29. dxc7 {[%emt 0:00:02]} g6 {[%emt 0:00:10]} 30. Re7 {[%emt 0:00:50]} Kg7 {[%emt 0:01:02]} 31. c4 {[%emt 0:02:52]} Re8 {[%emt 0:00:40]} 32. Rxe8 {[%emt 0:01:00]} Nxe8 {[%emt 0:00:05]} 33. cxd5 {[%emt 0:00:03]} Nxc7 {[%emt 0:00:55]} 34. Be4 {[%emt 0:02:02]} Kf6 {[%emt 0:00:48]} 35. d6 {[%emt 0:01:33]} Ne8 {[%emt 0:03:14]} 36. d7 {[%emt 0:00:28]} Bxd7 {[%emt 0:00:06]} 37. Bxb7 {[%emt 0:00:03]} a5 {[%emt 0:00:14]} 38. Bc6 {[%emt 0:02:53]} Bxc6 {[%emt 0:01:06]} 39. Nxc6 {[%emt 0:00:02]} a4 {[%emt 0:00:07]} 40. Kf1 {[%emt 0:00:00]} Ke6 {[%emt 0:00:00]} 41. Nb4 {[%emt 0:01:31]} Kd6 {[%emt 0:07:44]} 42. Ke2 {[%emt 0:00:42]} Kc5 {[%emt 0:03:04]} 43. Nd3+ {[%emt 0:00:07]} Kd4 {[%emt 0:02:54]} 44. Kd2 {[%emt 0:00:08]} Nf6 {[%emt 0:01:33]} 45. Nb2 {[%emt 0:02:23]} a3 {[%emt 0:01:44]} 46. Nd1 {[%emt 0:00:04]} Nd5 {[%emt 0:02:17]} 47. Kc2 {[%emt 0:00:41]} Kc4 {[%emt 0:00:07]} 48. Kd2 {[%emt 0:08:18]} f5 {[%emt 0:03:39]} 49. Ne3+ {[%emt 0:08:39]} Nxe3 {[%emt 0:02:51]} 50. fxe3 {[%emt 0:01:49]} g5 {[%emt 0:02:07]} 51. Kc2 {[%emt 0:02:00]} Kd5 {[%emt 0:02:17]} 52. Kb3 {[%emt 0:03:57]} Ke4 {[%emt 0:02:13]} 53. Kxa3 {[%emt 0:00:01]} Kxe3 {[%emt 0:00:19]} 54. Kb4 {[%emt 0:00:06]} f4 {[%emt 0:00:29]} 55. a4 {[%emt 0:00:03]} g4 {[%emt 0:00:28]} 56. a5 {[%emt 0:00:36]} f3 {[%emt 0:00:06]} 57. gxf3 {[%emt 0:00:09]} gxf3 {[%emt 0:00:05]} 58. a6 {[%emt 0:00:02]} f2 {[%emt 0:00:07]} 59. a7 {[%emt 0:00:04]} f1=Q {[%emt 0:00:12]} 60. a8=Q {[%emt 0:00:04]} Qf4+ {[%emt 0:01:40]} 61. Kb3 {[%emt 0:01:50]} Qf7+ {[%emt 0:03:00]} 62. Kb2 {[%emt 0:00:51]} h5 {[%emt 0:00:29]} 63. Qa3+ {[%emt 0:00:13]} Ke2 {[%emt 0:00:07]} 64. Qa6+ {[%emt 0:00:28]} Kf2 {[%emt 0:00:32]} 65. Qd6 {[%emt 0:01:56]} Qf3 {[%emt 0:00:33]} 66. Kc2 {[%emt 0:02:31]} Kg1 {[%emt 0:01:29]} 67. Kc1 {[%emt 0:03:16]} Qf1+ {[%emt 0:01:35]} 68. Kd2 {[%emt 0:00:01]} Qf2+ {[%emt 0:00:09]} 69. Kd1 {[%emt 0:00:01]} h4 {[%emt 0:00:08]} 70. Qg6+ {[%emt 0:03:23]} Kxh2 {[%emt 0:00:40]} 71. Qd6+ {[%emt 0:00:03]} Kh1 {[%emt 0:02:17]} 72. Qd3 {[%emt 0:01:56]} Qg1+ {[%emt 0:01:22]} 73. Ke2 {[%emt 0:00:05]} Qg2+ {[%emt 0:00:15]} 74. Kd1 {[%emt 0:00:31]} h3 {[%emt 0:00:11]} 75. Ke1 {[%emt 0:00:26]} Kh2 {[%emt 0:00:51]} 76. Qf1 {[%emt 0:01:01]} Qe4+ {[%emt 0:00:54]} 77. Kf2 {[%emt 0:00:17]} Qg2+ {[%emt 0:01:16]} 78. Ke1 {[%emt 0:00:00]} Kg3 {[%emt 0:01:10]} 79. Qd3+ {[%emt 0:00:02]} Qf3 {[%emt 0:01:46]} 80. Qg6+ {[%emt 0:00:55]} Kh2 {[%emt 0:00:39]} 81. Qc2+ {[%emt 0:00:04]} Qg2 {[%emt 0:00:35]} 82. Qf2 {[%emt 0:00:19]} Kh1 {[%emt 0:00:25]} 83. Qf1+ {[%emt 0:01:24]} Qg1 {[%emt 0:00:15]} 84. Ke2 {[%emt 0:00:07]} Kh2 {[%emt 0:01:14]} 85. Qf2+ {[%emt 0:00:04]} Qg2 {[%emt 0:00:35]} 86. Ke1 {[%emt 0:00:08]} Qxf2+ {[%emt 0:00:33]} 87. Kxf2 {[%emt 0:00:02]} Kh1 {[%emt 0:00:09]} 88. Kf1 {[%emt 0:00:03]} h2 {[%emt 0:00:05]} 89. Kf2 {[%emt 0:00:01]} 1/2-1/2

[Event "EYCC Girls-U18 2019"]
[Site "Bratislava"]
[Date "2019.08.08"]
[Round "7.10"]
[White "Beydullayeva, Govhar"]
[Black "Duson, Robin"]
[Result "1-0"]
[ECO "E10"]
[WhiteElo "2282"]
[BlackElo "1936"]
[Annotator "NA"]
[PlyCount "39"]
[EventDate "2019.08.02"]
[EventType "swiss"]
[EventCountry "SVK"]
[SourceTitle "playchess.com"]
[Source "ChessBase"]
[SourceQuality "1"]
[TimeControl "40/5400+30:1800+30"]

1. d4 {[%emt 0:00:00]} Nf6 {[%emt 0:00:00]} 2. c4 {[%emt 0:00:00]} e6 {[%emt 0:00:00]} 3. Nf3 {[%emt 0:00:05]} c5 {[%emt 0:00:19]} 4. Nc3 {[%emt 0:00:09]} cxd4 {[%emt 0:00:59]} 5. Nxd4 {[%emt 0:00:03]} Bb4 {[%emt 0:01:12]} 6. Ndb5 {[%emt 0:14:09]} d5 {[%emt 0:08:44]} 7. cxd5 {[%emt 0:04:30]} Nxd5 {[%emt 0:07:57]} 8. e4 {[%emt 0:04:32]} Nxc3 {[%emt 0:08:00]} 9. bxc3 {[%emt 0:02:21]} Bc5 {[%emt 0:08:54]} 10. Bf4 {[%emt 0:17:33]} Na6 {[%emt 0:03:43]} 11. Nd6+ {[%emt 0:03:40]} Ke7 {[%emt 0:02:01]} 12. Nc4 {[%emt 0:15:02]} Qxd1+ {[%emt 0:02:53]} 13. Rxd1 {[%emt 0:00:04]} Nb8 {[%emt 0:10:19]} 14. Be2 {[%emt 0:01:58]} Nc6 {[%emt 0:03:36]} 15. O-O {[%emt 0:01:11]} f6 {[%emt 0:03:52]} 16. e5 {[%emt 0:00:54]} b5 {[%emt 0:03:40]} 17. Bf3 {[%emt 0:05:02]} bxc4 {[%emt 0:02:58]} 18. Bxc6 {[%emt 0:00:07]} Ba6 {[%emt 0:05:38]} 19. Rd7+ {[%emt 0:00:05]} Ke8 {[%emt 0:00:19]} 20. Rxa7+ {[%emt 0:00:16]} 1-0